Posting Date,Expenditure Area,Supplier Name,Net Amount,Expense Type,Reason for Expense 
13-Nov-18,Culture & Environment Services,Ajproductscouk,95.00,Premises Costs - Miscellaneous,Board trolley for the Market
30-Nov-18,Culture & Environment Services,Aldi 89 776,12.10,Materials and Supplies - Miscellaneous,Meeting / Training refreshments
12-Nov-18,Culture & Environment Services,Amazon.Co.Uk,13.44,Equipment - Purchase General,2 x microphone cables
02-Nov-18,Culture & Environment Services,Amzn Mktp Uk,18.60,Equipment - Purchase General,2 x Leaflet holders
05-Nov-18,Culture & Environment Services,Amzn Mktp Uk,17.62,Equipment - Purchase General,A3 cellophane slips for limited edited print display/sales
05-Nov-18,Culture & Environment Services,Amzn Mktp Uk,15.41,Equipment - Purchase General,acrylic plinths for POS displays
05-Nov-18,Culture & Environment Services,Amzn Mktp Uk,16.61,Equipment - Purchase General,brochure stand for POS displays
05-Nov-18,Culture & Environment Services,Amzn Mktp Uk,12.48,Equipment - Purchase General,protective storage for limited edited prints
06-Nov-18,Culture & Environment Services,Amzn Mktp Uk,15.57,Equipment - Purchase General,POS materials for limited edition prints
07-Nov-18,Culture & Environment Services,Amzn Mktp Uk,41.58,Equipment - Purchase General,Equipment purchase
08-Nov-18,Culture & Environment Services,Amzn Mktp Uk,28.31,Equipment - Purchase General,Charge cables for tablets 
08-Nov-18,Culture & Environment Services,Amzn Mktp Uk,185.13,Equipment - Purchase General,Misc equipment purchase
09-Nov-18,Culture & Environment Services,Amzn Mktp Uk,67.26,Equipment - Purchase General,display rack for new wrapping paper sales offer
12-Nov-18,Culture & Environment Services,Amzn Mktp Uk,19.98,Equipment - Purchase General,x2 agility ladders for fitness classes
14-Nov-18,Culture & Environment Services,Amzn Mktp Uk,118.71,Equipment - Purchase General,hand weights x6 for classes various sizes
16-Nov-18,Culture & Environment Services,Amzn Mktp Uk,22.06,Equipment - Purchase General,Storage Bag for Masters Swimming Equipment
19-Nov-18,Culture & Environment Services,Amzn Mktp Uk,8.46,Equipment - Purchase General,x2 plastic large bucket containers for fitness equipment
26-Nov-18,Culture & Environment Services,Amzn Mktp Uk,28.33,Equipment - Purchase General,basket for point of sale displays
26-Nov-18,Culture & Environment Services,Amzn Mktp Uk,3.91,Equipment - Purchase General,xmas bunting for display in TIC
27-Nov-18,Culture & Environment Services,Amzn Mktp Uk,8.72,Equipment - Purchase General,xmas decorations
28-Nov-18,Culture & Environment Services,Amzn Mktp Uk,9.79,Equipment - Purchase General,9v batteries for masons fire alarms
29-Nov-18,Culture & Environment Services,Amzn Mktp Uk,16.01,Equipment - Purchase General,x6 wd40 cans for centre use
30-Nov-18,Culture & Environment Services,Amzn Mktp Uk,10.00,Equipment - Purchase General,Place cards for Xmas parties
19-Nov-18,Culture & Environment Services,Amzn Mktp Uk,9.95,General Transport Running Expenses,5 x charger leads
19-Nov-18,Culture & Environment Services,Amzn Mktp Uk,23.44,General Transport Running Expenses,5 x USB chargers
26-Nov-18,Culture & Environment Services,Amzn Mktp Uk,14.95,General Transport Running Expenses,5 x adapter leads for chargers
12-Nov-18,Culture & Environment Services,Amzn Mktp Uk,14.99,Materials and Supplies - Miscellaneous,first aid for centre use
12-Nov-18,Culture & Environment Services,Amzn Mktp Uk,16.33,Materials and Supplies - Miscellaneous,first aid stock for centre use
14-Nov-18,Culture & Environment Services,Amzn Mktp Uk,7.60,Materials and Supplies - Miscellaneous,first aid stock for centre use
30-Nov-18,Culture & Environment Services,Amzn Mktp Uk,5.66,Materials and Supplies - Miscellaneous,Purchase of First Aid hi-vis for Friends Christmas Event
22-Nov-18,Culture & Environment Services,Amzn Mktp Uk,36.66,Other Minor Expenses,4xA4 Display Board
15-Nov-18,Culture & Environment Services,Amzn Mktp Uk,30.65,Stationery,Ballpoint Pens
15-Nov-18,Culture & Environment Services,Amzn Mktp Uk,6.40,Stationery,Celeotape Tape
15-Nov-18,Culture & Environment Services,Amzn Mktp Uk,6.89,Stationery,Whiteboard Pens
21-Nov-18,Culture & Environment Services,Amzn Mktp Uk,2.46,Stationery,Whiteboard Magnets
21-Nov-18,Culture & Environment Services,Amzn Mktp Uk,3.32,Stationery,Whiteboard Tape
21-Nov-18,Culture & Environment Services,Aquajet Cleaning Equipmen,123.05,Equipment - Purchase General,scrubber dryer machine fix
21-Nov-18,Culture & Environment Services,Argos Ltd,45.83,Equipment - Purchase General,Microwave for staff room
23-Oct-18,Culture & Environment Services,Argos Retail Group,73.33,Other Minor Expenses,Heater for Office
22-Nov-18,Culture & Environment Services,Asda Petrol 4278,64.26,General Transport Running Expenses,58.55l diesel DY56VKD
05-Nov-18,Culture & Environment Services,Asda Stores 4278,14.83,Goods for Resale - Catering/Beverages,Lemons / Limes / Milk
19-Nov-18,Culture & Environment Services,Asda Stores 4278,20.59,Goods for Resale - Catering/Beverages,"lemons, limes, milk, bread"
28-Nov-18,Culture & Environment Services,Asda Stores 4278,24.75,Goods for Resale - Catering/Beverages,Meeting Catering
05-Nov-18,Culture & Environment Services,Asda Superstore,2.03,Cleaning Supplies,drying rack and marigolds for washing up at WSC
07-Nov-18,Culture & Environment Services,Asda Superstore,19.00,Employee Expenses,Eye test 
20-Nov-18,Culture & Environment Services,B & M Retail,14.53,Equipment - Purchase General,Air freshners
21-Nov-18,Culture & Environment Services,B & M Retail,26.43,Equipment - Purchase General,Christmas decorations
22-Nov-18,Culture & Environment Services,B & M Retail,4.15,Equipment - Purchase General,Christmas glitter bows
24-Oct-18,Culture & Environment Services,B & M Retail,16.46,Materials and Supplies - Miscellaneous,Christmas Decorations
19-Nov-18,Culture & Environment Services,B & M Retail,44.94,Materials and Supplies - Miscellaneous,Christmas Decorations
27-Nov-18,Culture & Environment Services,B & M Retail,12.89,Materials and Supplies - Miscellaneous,Christmas Decorations
20-Nov-18,Culture & Environment Services,B & M Retail,37.53,Other Minor Expenses,Christmas decorations
06-Nov-18,Culture & Environment Services,B & Q 1315,14.73,Equipment - Purchase General,Replacements Bolts for doors
08-Nov-18,Culture & Environment Services,B & Q 1315,26.02,Equipment - Purchase General,Small Plastic Storage box and bits for Waterfront
12-Nov-18,Culture & Environment Services,B & Q 1315,6.67,Equipment - Purchase General,Replacement shower hose for the accessible changing room.
29-Oct-18,Culture & Environment Services,B & Q 1315,4.27,Materials and Supplies - Miscellaneous,Screws
02-Nov-18,Culture & Environment Services,B & Q 1315,15.58,Miscellaneous Stock  - Purchases,Edging - ST AUGUSTINE'S REC - Landscape Team
08-Nov-18,Culture & Environment Services,B & Q 1315,40.83,Miscellaneous Stock  - Purchases,Wood for the planters at Orwell Quay car park
13-Nov-18,Culture & Environment Services,B & Q 1315,29.68,Miscellaneous Stock  - Purchases,Rapid cement - St Augustine's Rec - Landscape Team
14-Nov-18,Culture & Environment Services,B & Q 1315,14.47,Miscellaneous Stock  - Purchases,Ballast - ST AUGUSTINE'S REC - Landscape Team
14-Nov-18,Culture & Environment Services,B & Q 1315,49.39,Miscellaneous Stock  - Purchases,Rapid Cement - ST AUGUSTINE'S REC - Landscape Team
19-Nov-18,Culture & Environment Services,B & Q 1315,-14.47,Miscellaneous Stock  - Purchases,Item returned and refunded - Landscape Team
21-Nov-18,Culture & Environment Services,B & Q 1315,59.35,Miscellaneous Stock  - Purchases,Rapid Cement - ST AUGUSTINES REC - Landscape Team
22-Nov-18,Culture & Environment Services,B & Q 1315,59.35,Miscellaneous Stock  - Purchases,Rapid Cement - ST AUGUSTINES REC - Landscape Team
23-Nov-18,Culture & Environment Services,B & Q 1315,19.78,Miscellaneous Stock  - Purchases,Cement - ST AGUSTINES REC - Landscape Team
28-Nov-18,Culture & Environment Services,B & Q 1315,30.12,Miscellaneous Stock  - Purchases,Prembark for Tree planting - WESTBURY ROAD - Landscape Team
28-Nov-18,Culture & Environment Services,B & Q 1315,19.77,Miscellaneous Stock  - Purchases,Tools to fit name plate to seat at St Augustine's Rec
16-Nov-18,Culture & Environment Services,Bag Agg Ltd,25.25,Miscellaneous Stock  - Purchases,Type 1 - ST AUGUSTINE'S REC - Landscape Team
16-Nov-18,Culture & Environment Services,Bag Agg Ltd,25.25,Miscellaneous Stock  - Purchases,Type 1 - ST AUGUSTINE'S REC - Landscape Team
22-Nov-18,Culture & Environment Services,Bag Agg Ltd,24.05,Miscellaneous Stock  - Purchases,Ballast - ST AGUSTINES REC - Landscape Team
22-Nov-18,Culture & Environment Services,Bag Agg Ltd,24.05,Miscellaneous Stock  - Purchases,Ballast - ST AUGUSTINEs REC - Landscape Team
23-Nov-18,Culture & Environment Services,Bag Agg Ltd,24.05,Miscellaneous Stock  - Purchases,Ballast - ST AUGUSTINES REC - Landscape Team
23-Nov-18,Culture & Environment Services,Bag Agg Ltd,24.05,Miscellaneous Stock  - Purchases,Ballast - ST AUGUSTINES REC - Landscape Team
01-Nov-18,Culture & Environment Services,Banner Group Ltd,5.52,Stationery,Diaries
05-Nov-18,Culture & Environment Services,Banner Group Ltd,20.00,Stationery,Office stationery
05-Nov-18,Culture & Environment Services,Banner Group Ltd,54.49,Stationery,Stationary including hook & loops for marketing
09-Nov-18,Culture & Environment Services,Banner Group Ltd,64.91,Stationery,Stationary
13-Nov-18,Culture & Environment Services,Banner Group Ltd,13.18,Stationery,Lever Arch Files
20-Nov-18,Culture & Environment Services,Banner Group Ltd,12.74,Stationery,Money tin
20-Nov-18,Culture & Environment Services,Banner Group Ltd,26.14,Stationery,stationary
20-Nov-18,Culture & Environment Services,Banner Group Ltd,26.14,Stationery,stationary
26-Nov-18,Culture & Environment Services,Banner Group Ltd,-26.14,Stationery,stationary
06-Nov-18,Culture & Environment Services,Boilerjuice Ltd,274.71,Parks Vehicle Costs,Domestic heating oil for 2 Nursery Lodge
12-Nov-18,Culture & Environment Services,Booker Limited Ipswich,133.82,Cleaning Supplies,"Lemons, Juice for events, cleaning products and batteries fo"
12-Nov-18,Culture & Environment Services,Booker Limited Ipswich,3.99,Goods for Resale - Catering/Beverages,"Lemons, Juice for events, cleaning products and batteries fo"
12-Nov-18,Culture & Environment Services,Booker Limited Ipswich,29.73,Goods for Resale - Catering/Beverages,"Lemons, Juice for events, cleaning products and batteries fo"
28-Nov-18,Culture & Environment Services,Booker Limited Ipswich,12.99,Goods for Resale - Catering/Beverages,Items for badminton catering
28-Nov-18,Culture & Environment Services,Booker Limited Ipswich,203.31,Goods for Resale - Catering/Beverages,Items for badminton catering
06-Nov-18,Culture & Environment Services,Booker Limited Ipswich,34.63,Materials and Supplies - Miscellaneous,Coffee for volunteers at CCP
12-Nov-18,Culture & Environment Services,Booker Limited Ipswich,18.86,Materials and Supplies - Miscellaneous,"Lemons, Juice for events, cleaning products and batteries fo"
26-Nov-18,Culture & Environment Services,Boots 1833,7.92,Goods for Resale - Catering/Beverages,Rider Food for Rich Hall
06-Nov-18,Culture & Environment Services,Bright Acres Tool Hire,90.00,Miscellaneous Stock  - Purchases,Turf Lifter - FIREWORKS EVENT - Landscape Team
14-Nov-18,Culture & Environment Services,Bunzl,34.60,Cleaning Supplies,Cleaning supplies
20-Nov-18,Culture & Environment Services,Bunzl,15.24,Cleaning Supplies,Cleaning Products - Christchurch Hub
29-Nov-18,Culture & Environment Services,Bunzl,147.61,Cleaning Supplies,cleaning supplies
30-Nov-18,Culture & Environment Services,Bunzl,303.68,Cleaning Supplies,Norse cleaning supply order
06-Nov-18,Culture & Environment Services,Buttermarket Lighting,5.00,Equipment - Purchase General,Light bulbs for lamp
02-Nov-18,Culture & Environment Services,Caffe Nero - 101,4.92,Subsistence Expenses,external staffing review
16-Nov-18,Culture & Environment Services,Caffe Nero - 101,8.67,Subsistence Expenses,meeting with sailing barge victor management
29-Nov-18,Culture & Environment Services,Card Factory,7.84,Equipment - Purchase General,Ticket boxes for Xmas Parties
06-Nov-18,Culture & Environment Services,Card Factory,2.48,Subsistence Expenses,Volunteer documentation
02-Nov-18,Culture & Environment Services,Cater4you.Co.Uk,216.59,Equipment - Purchase General,"Disposable Cups, lids and straws"
23-Nov-18,Culture & Environment Services,Cdc Bodyshop Limited,850.01,General Transport Running Expenses,FP58 JVF & AV11 ZTM - repairs
23-Nov-18,Culture & Environment Services,Cdc Bodyshop Limited,349.99,General Transport Running Expenses,FP58 JVF & AV11 ZTM - repairs
29-Nov-18,Culture & Environment Services,Coffee Cat,4.17,Subsistence Expenses,external meeting with We Create Projects/Secret Art Club
08-Nov-18,Culture & Environment Services,Comms Express Ltd,24.38,Equipment - Purchase General,Data Cables for Tills
01-Nov-18,Culture & Environment Services,Corrchilled,762.00,Equipment - Purchase General,Ice Cream Freezers
23-Nov-18,Culture & Environment Services,Costa Coffee,13.71,Other Minor Expenses,Staff Refreshments - Xmas Lights Event
05-Nov-18,Culture & Environment Services,Cpw Locksmiths And Securi,25.00,Materials and Supplies - Miscellaneous,key cutting for bin stores
06-Nov-18,Culture & Environment Services,Cpw Locksmiths And Securi,5.83,Materials and Supplies - Miscellaneous,key cutting for bin stores
09-Nov-18,Culture & Environment Services,Culpitt Ltd,66.88,Goods for Resale - Catering/Beverages,Items for Xmas Parties
09-Nov-18,Culture & Environment Services,Display Stands Ltd,28.41,Equipment - Purchase General,Display stands
06-Nov-18,Culture & Environment Services,Dvla Vehicle Tax,232.50,General Transport Running Expenses,Vehicle tax for AO54 YKY
06-Nov-18,Culture & Environment Services,Dvla Vehicle Tax,252.50,General Transport Running Expenses,Vehicle Tax for AY63 ZBP
08-Nov-18,Culture & Environment Services,Dvla Vehicle Tax,252.50,General Transport Running Expenses,Vehicle Tax for AT57 EKV
08-Nov-18,Culture & Environment Services,Dvla Vehicle Tax,252.50,General Transport Running Expenses,Vehicle tax for AV58 NXR
08-Nov-18,Culture & Environment Services,Dvla Vehicle Tax,252.50,General Transport Running Expenses,Vehicle tax for av58 nxs
08-Nov-18,Culture & Environment Services,Dvla Vehicle Tax,252.50,General Transport Running Expenses,Vehicle tax for AV58 NYA
08-Nov-18,Culture & Environment Services,Dvla Vehicle Tax,252.50,General Transport Running Expenses,Vehicle tax for AV58 NYB
08-Nov-18,Culture & Environment Services,Dvla Vehicle Tax,252.50,General Transport Running Expenses,Vehicle tax for AV58 NYC
08-Nov-18,Culture & Environment Services,Dvla Vehicle Tax,252.50,General Transport Running Expenses,Vehicle tax for AY63 ZCF
12-Nov-18,Culture & Environment Services,Dvla Vehicle Tax,252.50,General Transport Running Expenses,Vehicle Tax for AY63 ZCJ
13-Nov-18,Culture & Environment Services,Dvla Vehicle Tax,252.50,General Transport Running Expenses,Vehicle Tax for AY63 ZBO
15-Nov-18,Culture & Environment Services,Dvla Vehicle Tax,652.50,General Transport Running Expenses,Vehicle Tax for AV62 WMD
15-Nov-18,Culture & Environment Services,Dvla Vehicle Tax,652.50,General Transport Running Expenses,Vehicle Tax for AV62 WME
06-Nov-18,Culture & Environment Services,Dvla Vehicle Tax,252.50,Parks Vehicle Costs,Vehicle tax for AO64 PFU
08-Nov-18,Culture & Environment Services,Dvla Vehicle Tax,252.50,Parks Vehicle Costs,Vehicle Tax for FP58 JVF
09-Nov-18,Culture & Environment Services,Dvla Vehicle Tax,252.50,Parks Vehicle Costs,Vehicle tax for FL58 LBP
16-Nov-18,Culture & Environment Services,Dvla Vehicle Tax,252.50,Parks Vehicle Costs,Vehicle tax for AV55 YCR
19-Nov-18,Culture & Environment Services,Dvla Vehicle Tax,252.50,Parks Vehicle Costs,Vehicle tax for AV55 YCS
20-Nov-18,Culture & Environment Services,Dvla Vehicle Tax,252.50,Parks Vehicle Costs,Vehicle Tax for AV55 YCT
07-Nov-18,Culture & Environment Services,Eastern Auto Spares Ip,3.33,Miscellaneous Stock  - Purchases,Grease Tube - Landscape Team
13-Nov-18,Culture & Environment Services,Eastern Concrete,541.67,Miscellaneous Stock  - Purchases,Concrete - St Augustine's Rec - Landscape Team
13-Nov-18,Culture & Environment Services,Eastern Concrete,94.45,Miscellaneous Stock  - Purchases,Concrete - St Augustine's Rec - Landscape Team
06-Nov-18,Culture & Environment Services,Elmers Hardware,84.24,Materials and Supplies - Miscellaneous,Various Tools for Amy Coombes - CCP - Landscape Team
12-Nov-18,Culture & Environment Services,Elmers Hardware,16.66,Materials and Supplies - Miscellaneous,Socket set for Cemetery
14-Nov-18,Culture & Environment Services,Eoe Co-Op,1.67,Cleaning Supplies,Bleach for Masonry team
27-Nov-18,Culture & Environment Services,Eoe Co-Op,0.79,Other Minor Expenses,sugar for office
13-Nov-18,Culture & Environment Services,Eoe Co-Op,35.23,Project Costs,Refreshments and Cleaning Products For The House
15-Nov-18,Culture & Environment Services,Evaq Emergency Kits,115.60,Equipment - Purchase General,Purchase of Events Equipment
12-Nov-18,Culture & Environment Services,Foxs Chandleries,46.04,Miscellaneous Stock  - Purchases,Rope for Remembrance Sunday
12-Nov-18,Culture & Environment Services,Foxs Chandleries,186.67,Miscellaneous Stock  - Purchases,Rope for Remembrance Sunday
29-Nov-18,Culture & Environment Services,Fr Jones And Son Ltd,-32.49,Clothing & Uniform - Purchase,Refund for Oregon safety kit
20-Nov-18,Culture & Environment Services,Granitesound.Com,504.00,Equipment - Purchase General,Purchase of new Cans headsets for the Regent
01-Nov-18,Culture & Environment Services,Gripfixings Ltd,21.60,Miscellaneous Stock  - Purchases,Anchor studs for benches in HW - Holywells Hub
01-Nov-18,Culture & Environment Services,Gripfixings Ltd,7.58,Miscellaneous Stock  - Purchases,Bolts for benches in HW - Holywells
12-Nov-18,Culture & Environment Services,Gripfixings Ltd,16.96,Miscellaneous Stock  - Purchases,Galv Brackets/coachbolt - CCP BENCH INST - Landscape Team
27-Nov-18,Culture & Environment Services,Groundsman Tools And Supp,162.98,Materials and Supplies - Miscellaneous,"Rakes, forks, hoe handles, how heads and a sharpening stone"
07-Nov-18,Culture & Environment Services,Halfords 0883,10.42,Materials and Supplies - Miscellaneous,equipment for arbs team
13-Nov-18,Culture & Environment Services,Hampshirefl,178.74,Equipment - Purchase General,"Flags - 2 x St George Cross, 2 x Union Jack, 1 x European un"
19-Nov-18,Culture & Environment Services,Hg Gladwell & Sons,39.65,Materials and Supplies - Miscellaneous,food for birds
26-Nov-18,Culture & Environment Services,Hlsmoore,41.08,Materials and Supplies - Miscellaneous,Lights for centre pieces
08-Jun-18,Culture & Environment Services,Honey Brothers Ltd,"2,005.00",Equipment - Purchase General,Chainsaws
15-Nov-18,Culture & Environment Services,Horticultural Sppls Ltd,40.39,Materials and Supplies - Miscellaneous,Purchase of Tree planting materials for Milly Cem
29-Nov-18,Culture & Environment Services,Horticultural Sppls Ltd,61.86,Materials and Supplies - Miscellaneous,Chelwood Rake - Christchurch Hub
09-Nov-18,Culture & Environment Services,Horticultural Sppls Ltd,40.66,Miscellaneous Stock  - Purchases,Tree cushion & Fertiliser - IPSERV - Landscape Team
19-Nov-18,Culture & Environment Services,Horticultural Sppls Ltd,61.40,Miscellaneous Stock  - Purchases,General purpose grass seeds - ST AUGUSTINE'S REC - Landscape
27-Nov-18,Culture & Environment Services,Horticultural Sppls Ltd,70.00,Miscellaneous Stock  - Purchases,Groundcover pegs/grass seeds - ST AGUSTINES REC - Landscape
02-Nov-18,Culture & Environment Services,Inn-Dispensable Bus S Lt,445.00,Training/Courses Running Costs,Personal Licence Courses
07-Nov-18,Culture & Environment Services,Inn-Dispensable Bus S Lt,148.33,Training/Courses Running Costs,Personal License Course
06-Nov-18,Culture & Environment Services,Ipswich Arts & Enterta,5.00,Other Minor Expenses,Charity Voucher
13-Nov-18,Culture & Environment Services,Ipswich Arts & Enterta,5.00,Other Minor Expenses,Charity Gift Voucher
15-Nov-18,Culture & Environment Services,Ipswich Buildbase,724.50,Development & Maintenance of Natural Areas,Timber for post and rail fence Braziers Meadow
15-Nov-18,Culture & Environment Services,J S Popcorn,176.65,Goods for Resale - Catering/Beverages,Popcorn
30-Nov-18,Culture & Environment Services,Jansen Display Ltd,58.15,Materials and Supplies - Miscellaneous,A4 Plastic Menu Holders
09-Nov-18,Culture & Environment Services,Kent Blaxill And C,22.95,Equipment - Purchase General,"Wood stain, wooden surrounds - Graves"
27-Nov-18,Culture & Environment Services,Kings,7.50,Materials and Supplies - Miscellaneous,work equipment
30-Nov-18,Culture & Environment Services,Kings,75.00,Materials and Supplies - Miscellaneous,equipment for GM
07-Nov-18,Culture & Environment Services,Lloyds Online,118.50,Employee Expenses,Inoculations for Street Cleansing staff
09-Nov-18,Culture & Environment Services,Lloyds Online,98.75,Employee Expenses,Inoculations for Street Cleansing staff
09-Nov-18,Culture & Environment Services,Lloyds Online,-118.50,Employee Expenses,Inoculations for Street Cleansing staff
09-Nov-18,Culture & Environment Services,Lloyds Online,118.50,Employee Expenses,Inoculations for Street Cleansing staff
15-Nov-18,Culture & Environment Services,Lumberjacks,205.07,Development & Maintenance of Natural Areas,Gate materials Brazier Meadow
19-Nov-18,Culture & Environment Services,Lumberjacks,73.63,Equipment - Purchase General,Equipment for Rangers.
13-Nov-18,Culture & Environment Services,Lumberjacks,82.63,Materials and Supplies - Miscellaneous,Purchase of stakes and cross pieces for Milly Oak Avenue
15-Nov-18,Culture & Environment Services,Lumberjacks,8.68,Materials and Supplies - Miscellaneous,Purchase of nails for tree planting at Milly Cem
23-Nov-18,Culture & Environment Services,Lumberjacks,25.80,Materials and Supplies - Miscellaneous,Tree stakes - 4 CCP - Landscape Team
29-Nov-18,Culture & Environment Services,Lumberjacks,30.90,Materials and Supplies - Miscellaneous,equipment for GM
09-Nov-18,Culture & Environment Services,Lumberjacks,23.91,Miscellaneous Stock  - Purchases,P/stakes - IPSERV - Landscape Team
19-Nov-18,Culture & Environment Services,Lumberjacks,20.63,Miscellaneous Stock  - Purchases,P/Stakes - IPSERV - Landscape Team
23-Nov-18,Culture & Environment Services,Lumberjacks,10.48,Miscellaneous Stock  - Purchases,Shovel - Landscape Team
12-Nov-18,Culture & Environment Services,Machine Mart Ltd,8.99,Equipment - Purchase General,drain unblocker
21-Nov-18,Culture & Environment Services,Machine Mart Ltd,84.99,Equipment - Purchase General,Purchase of Events Equipment
12-Nov-18,Culture & Environment Services,Makro Self Service Ipswic,196.91,Goods for Resale - Catering/Beverages,Additional Stock
13-Nov-18,Culture & Environment Services,Makro Self Service Ipswic,26.98,Other Minor Expenses,tea and coffee
22-Nov-18,Culture & Environment Services,Microsoft *store,59.57,Equipment - Purchase General,2 x wireless display adapters for meeting rooms
14-Nov-18,Culture & Environment Services,Mobile Mini UK Limited,78.00,Equipment Hire,Container Hire for Equipment Storage.
01-Nov-18,Culture & Environment Services,Narey S Garden Cen,120.00,Materials and Supplies - Miscellaneous,Plants/bedding for CCP - Christchurch Hub
12-Nov-18,Culture & Environment Services,Newitts.Com,74.49,Equipment - Purchase General,Pool Buoys For Masters Swimming Course
12-Nov-18,Culture & Environment Services,Novotel Ipswich,64.17,Other Minor Expenses,Hotel Rm for Rigger on Australian Pink Floyd Show - 9th Nov
12-Nov-18,Culture & Environment Services,Odlings Mcr Ltd,139.70,Equipment - Purchase General,masonry supplies
30-Nov-18,Culture & Environment Services,P R Locksmith Services Li,225.57,Materials and Supplies - Miscellaneous,x10 Multi lock Padlocks for various Park - CCP/HWP/CP
30-Nov-18,Culture & Environment Services,P R Locksmith Services Li,225.57,Materials and Supplies - Miscellaneous,x10 Multi lock Padlocks for various Park - CCP/HWP/CP
30-Nov-18,Culture & Environment Services,P R Locksmith Services Li,225.56,Materials and Supplies - Miscellaneous,x10 Multi lock Padlocks for various Park - CCP/HWP/CP
28-Nov-18,Culture & Environment Services,Patisserie Valerie,9.96,Subsistence Expenses,external lunch meeting re museum events
26-Nov-18,Culture & Environment Services,Paypal,857.86,Clothing & Uniform - Purchase,Arb crew PPE
22-Nov-18,Culture & Environment Services,Paypal,38.32,Equipment - Purchase General,No smoking stickers
22-Nov-18,Culture & Environment Services,Paypal,183.30,Equipment - Purchase General,xmas lights for TIC window display
21-Nov-18,Culture & Environment Services,Paypal,256.88,Goods for Resale - Retail,"Initial order with new supplier, suffolk candles"
21-Nov-18,Culture & Environment Services,Paypal,172.00,Materials and Supplies - Miscellaneous,10 super barrier tape - red & white
21-Nov-18,Culture & Environment Services,Paypal,145.00,Materials and Supplies - Miscellaneous,Chainsaw chains x 8 and sharpening kit & Pouch x 2
01-Nov-18,Culture & Environment Services,Paypal,77.50,Premises Costs - Miscellaneous,Rubber matting
22-Nov-18,Culture & Environment Services,Post Office Self Servi,8.71,Postage Costs,Stamps
23-Oct-18,Culture & Environment Services,Poundland Ltd 1344,3.33,Materials and Supplies - Miscellaneous,Batteries
22-Nov-18,Culture & Environment Services,Poundland Ltd 1719,20.83,Other Minor Expenses,christmas decorations
14-Nov-18,Culture & Environment Services,Poundland Ltd 1719,2.50,Subsistence Expenses,Sugar for Shop mo
19-Oct-18,Culture & Environment Services,Poundland Ltd 1747,3.00,Project Costs,Refreshments for community house
06-Nov-18,Culture & Environment Services,Premier Farnell,70.00,Equipment - Purchase General,Torches for FOH
22-Nov-18,Culture & Environment Services,Premier Farnell,27.94,Equipment - Purchase General,Event equipment general
06-Nov-18,Culture & Environment Services,Pump Street Bakery,215.28,Goods for Resale - Retail,Initial order with new supplier
07-Nov-18,Culture & Environment Services,Ridgeons,45.83,Materials and Supplies - Miscellaneous,Plywood - Remembrance Day - Landscape Team
12-Nov-18,Culture & Environment Services,Ridgeons,21.06,Materials and Supplies - Miscellaneous,Wood - REMEMBRANCE SUNDAY - Landscape Team
21-Nov-18,Culture & Environment Services,Ropesdirect.Co.Uk,66.54,Equipment - Purchase General,Replacement rope for swimming lanes.
14-Nov-18,Culture & Environment Services,Ruskin Lifting,188.60,Miscellaneous Stock  - Purchases,Lifting straps/tie down straps - Landscape Team
23-Oct-18,Culture & Environment Services,Ryman,13.30,Materials and Supplies - Miscellaneous,Chalk Pens
01-Nov-18,Culture & Environment Services,Ryman,4.99,Stationery,wall planner
05-Nov-18,Culture & Environment Services,Ryman,2.99,Stationery,Note book
28-Nov-18,Culture & Environment Services,Ryman,12.49,Stationery,Card
27-Nov-18,Culture & Environment Services,S. Critchley & Son,322.80,Equipment - Purchase General,masonry supplies
29-Nov-18,Culture & Environment Services,Safe.Co.Uk,184.41,Equipment - Purchase General,Armorgard TransBank TRB2
06-Nov-18,Culture & Environment Services,Sainsburys Petrol,75.90,General Transport Running Expenses,Diesel
21-Nov-18,Culture & Environment Services,Sainsburys Petrol,110.95,General Transport Running Expenses,DK16 YTZ
21-Nov-18,Culture & Environment Services,Sainsburys Petrol,32.12,General Transport Running Expenses,DK16 YTZ - hired skip lorry
21-Nov-18,Culture & Environment Services,Sainsburys Petrol,32.72,General Transport Running Expenses,GD67 UPY
21-Nov-18,Culture & Environment Services,Sainsburys Petrol,53.26,General Transport Running Expenses,GD67 UPZ
09-Nov-18,Culture & Environment Services,Sainsburys S/mkt,5.00,Equipment - Purchase General,Lemons for bars
08-Nov-18,Culture & Environment Services,Sainsburys S/mkt,52.17,Goods for Resale - Catering/Beverages,Catering order
20-Apr-18,Culture & Environment Services,Sainsburys S/mkt,19.60,Materials and Supplies - Miscellaneous,Water bottles for Arb Crew
06-Nov-18,Culture & Environment Services,Sainsburys S/mkts,3.67,Goods for Resale - Catering/Beverages,Milk
15-Nov-18,Culture & Environment Services,Sainsburys S/mkts,6.00,Goods for Resale - Catering/Beverages,Lemons
26-Nov-18,Culture & Environment Services,Sainsburys S/mkts,5.00,Goods for Resale - Catering/Beverages,Lemons
28-Nov-18,Culture & Environment Services,Sainsburys S/mkts,0.92,Goods for Resale - Catering/Beverages,milk
30-Nov-18,Culture & Environment Services,Sainsburys S/mkts,0.92,Goods for Resale - Catering/Beverages,Milk
21-May-18,Culture & Environment Services,Sainsburys S/mkts,10.00,Materials and Supplies - Miscellaneous,Water for Arb Crew
13-Nov-18,Culture & Environment Services,Sainsburys S/mkts,12.92,Materials and Supplies - Miscellaneous,Thank you cards for contributors to Remembrance Day
19-Nov-18,Culture & Environment Services,Sainsburys S/mkts,0.83,Subsistence Expenses,milk for shopmobility
02-Nov-18,Culture & Environment Services,Saturn Machine Knives Lt,52.00,Materials and Supplies - Miscellaneous,Regrind chipper blades for Arb Team
06-Nov-18,Culture & Environment Services,Screens-R-Us-Limited,210.00,General Transport Running Expenses,repairs to screen AY64 LRZ
15-Nov-18,Culture & Environment Services,Screens-R-Us-Limited,42.00,General Transport Running Expenses,Windscreen repairs to the following. No enough room!
15-Nov-18,Culture & Environment Services,Screens-R-Us-Limited,48.00,General Transport Running Expenses,Windscreen repairs to the following. No enough room!
15-Nov-18,Culture & Environment Services,Screens-R-Us-Limited,42.00,General Transport Running Expenses,Windscreen repairs to the following. No enough room!
15-Nov-18,Culture & Environment Services,Screens-R-Us-Limited,24.00,General Transport Running Expenses,Windscreen repairs to the following. No enough room!
21-Nov-18,Culture & Environment Services,Screens-R-Us-Limited,-42.00,General Transport Running Expenses,Repairs to windscreens
21-Nov-18,Culture & Environment Services,Screens-R-Us-Limited,-48.00,General Transport Running Expenses,Repairs to windscreens
21-Nov-18,Culture & Environment Services,Screens-R-Us-Limited,-42.00,General Transport Running Expenses,Repairs to windscreens
21-Nov-18,Culture & Environment Services,Screens-R-Us-Limited,-24.00,General Transport Running Expenses,Repairs to windscreens
26-Nov-18,Culture & Environment Services,Screens-R-Us-Limited,48.00,General Transport Running Expenses,Chip repair to AY64 LRZ
28-Nov-18,Culture & Environment Services,Screens-R-Us-Limited,42.00,General Transport Running Expenses,Windscreen Repairs
28-Nov-18,Culture & Environment Services,Screens-R-Us-Limited,48.00,General Transport Running Expenses,Windscreen Repairs
28-Nov-18,Culture & Environment Services,Screens-R-Us-Limited,42.00,General Transport Running Expenses,Windscreen Repairs
28-Nov-18,Culture & Environment Services,Screens-R-Us-Limited,24.00,General Transport Running Expenses,Windscreen Repairs
15-Nov-18,Culture & Environment Services,Screens-R-Us-Limited,48.00,Parks Vehicle Costs,Windscreen repairs 
21-Nov-18,Culture & Environment Services,Screens-R-Us-Limited,-48.00,Parks Vehicle Costs,Repairs to windscreens
28-Nov-18,Culture & Environment Services,Screens-R-Us-Limited,48.00,Parks Vehicle Costs,Windscreen Repairs
08-Nov-18,Culture & Environment Services,Screwfix Dir. Ltd,23.46,Miscellaneous Stock  - Purchases,Coach screws (tree planning) - IPSERV - Landscape Team
09-Nov-18,Culture & Environment Services,Screwfix Dir. Ltd,7.65,Miscellaneous Stock  - Purchases,Multi purpose wood filler - Landscape Team
28-Nov-18,Culture & Environment Services,Screwfix Dir. Ltd,39.98,Miscellaneous Stock  - Purchases,"Tape, lock back knife, diamond blade - Landscape Team"
22-Nov-18,Culture & Environment Services,Screwfix Dir. Ltd,4.98,Other Minor Expenses,Work Gloves for Staff
22-Nov-18,Culture & Environment Services,Screwfix Direct,31.57,Development & Maintenance of Natural Areas,Nails and fencing staples for Braziers Meadow OCP
23-Nov-18,Culture & Environment Services,Screwfix Direct,124.99,Development & Maintenance of Natural Areas,Cordless Drill
08-Nov-18,Culture & Environment Services,Screwfix Direct,42.10,Equipment - Purchase General,"handles, drill bits"
16-Nov-18,Culture & Environment Services,Screwfix Direct,58.32,Equipment - Purchase General,Purchase of PPE Work Boots for backstage crew.
21-Nov-18,Culture & Environment Services,Screwfix Direct,150.00,Equipment - Purchase General,Temporary Lights
24-Oct-18,Culture & Environment Services,Screwfix Direct,22.83,Materials and Supplies - Miscellaneous,Brass Hooks
05-Nov-18,Culture & Environment Services,Screwfix Direct Lt,10.99,Equipment - Purchase General,Plastic piping for corner flags on football pitches
02-Nov-18,Culture & Environment Services,Screwfix Ipswich Ransomes,32.45,Miscellaneous Stock  - Purchases,PPE Gloves - Landscape Team
20-Nov-18,Culture & Environment Services,Screwfix Ipswich Ransomes,52.98,Miscellaneous Stock  - Purchases,Concealed chain/cutting blades - Landscape Team
05-Nov-18,Culture & Environment Services,Sharman Caravans,23.75,Materials and Supplies - Miscellaneous,Pegs - Christchurch Hub
30-Nov-18,Culture & Environment Services,Shell Ranelagh 390,12.62,General Transport Running Expenses,Emergency diesel for Market van 
20-Nov-18,Culture & Environment Services,Signs For You Ltd,216.00,Advertising/Publicity,Panto mesh banners for Cornhill 
29-Nov-18,Culture & Environment Services,Signs For You Ltd,40.68,Miscellaneous Stock  - Purchases,Landscape scheme
07-Nov-18,Culture & Environment Services,Soils And Stone,510.00,Miscellaneous Stock  - Purchases,Orwell Quay planter Soil
09-Nov-18,Culture & Environment Services,Soils And Stone,"1,020.00",Miscellaneous Stock  - Purchases,Orwell Quay soil
09-Nov-18,Culture & Environment Services,Sovereign Turf Ltd,125.40,Materials and Supplies - Miscellaneous,Replacement Turf - Christchurch Hub
26-Nov-18,Culture & Environment Services,Sp * Olive & Sage Ltd,257.50,Materials and Supplies - Miscellaneous,Ornaments for RDVC
13-Nov-18,Culture & Environment Services,Sportsdirect 366,20.83,Equipment - Purchase General,Work boots 
26-Nov-18,Culture & Environment Services,Sportsdirect.Com,37.49,Clothing & Uniform - Purchase,Sondico Base Core vest
09-Nov-18,Culture & Environment Services,Stringerswo,64.44,Goods for Resale - Equipment,shuttlecocks
09-Nov-18,Culture & Environment Services,Stringerswo,64.44,Goods for Resale - Equipment,shuttlecocks
09-Nov-18,Culture & Environment Services,Stringerswo,64.45,Goods for Resale - Equipment,shuttlecocks
23-Nov-18,Culture & Environment Services,Suffolk County Council,3.33,Holding A/C - General Use,Death Certificate Public Health Funeral
26-Nov-18,Culture & Environment Services,Suffolk Fastener (Ipsw,6.00,Miscellaneous Stock  - Purchases,Bolts - ST AUGUSTINES REC - Landscape Team
27-Nov-18,Culture & Environment Services,Suffolk Wildlife T,97.50,Goods for Resale - Retail,suffolk wildlife trust calendars for retail stock
06-Nov-18,Culture & Environment Services,Suk Retail Ltd,20.83,Equipment - Purchase General,Paper for drift gate - show codes
07-Nov-18,Culture & Environment Services,Suk Retail Ltd,29.15,Materials and Supplies - Miscellaneous,equipment for arb team
27-Sep-18,Culture & Environment Services,Tennyson Insurance,82.76,Project Costs,Insurance for Ravenswood Wildlife Group
19-Nov-18,Culture & Environment Services,Tesco Pay At Pump 3887,62.50,General Transport Running Expenses,diesel fuel for GV12 SWJ
20-Nov-18,Culture & Environment Services,Tesco Store 2748,12.25,Goods for Resale - Catering/Beverages,"Gin for Bars, Elderflower sparkling and Milk"
20-Nov-18,Culture & Environment Services,Tesco Store 2748,9.36,Goods for Resale - Catering/Beverages,"Gin for Bars, Elderflower sparkling and Milk"
20-Nov-18,Culture & Environment Services,Tesco Store 2748,116.67,Goods for Resale - Catering/Beverages,"Gin for Bars, Elderflower sparkling and Milk"
20-Nov-18,Culture & Environment Services,Tesco Store 2748,5.42,Goods for Resale - Catering/Beverages,Rider Stuff
20-Nov-18,Culture & Environment Services,Tesco Store 2748,2.00,Goods for Resale - Catering/Beverages,Rider Stuff
23-Nov-18,Culture & Environment Services,Tesco Store 2877,5.00,Stationery,Office Diary
06-Nov-18,Culture & Environment Services,Tesco Store 3240,47.50,Goods for Resale - Catering/Beverages,Gin for Regent Bars
13-Nov-18,Culture & Environment Services,Tesco Store 3240,4.36,Goods for Resale - Catering/Beverages,Gin for bars. milk for away days
13-Nov-18,Culture & Environment Services,Tesco Store 3240,95.00,Goods for Resale - Catering/Beverages,Gin for bars. milk for away days
23-Nov-18,Culture & Environment Services,Tesco Store 3240,14.58,Goods for Resale - Catering/Beverages,Rich Hall Rider Drinks & Gin for Bars
23-Nov-18,Culture & Environment Services,Tesco Store 3240,183.34,Goods for Resale - Catering/Beverages,Rich Hall Rider Drinks & Gin for Bars
26-Nov-18,Culture & Environment Services,Tesco Stores 2877,1.09,Other Minor Expenses,Refreshments for volunteers
02-Nov-18,Culture & Environment Services,Tesco Stores 5909,1.10,Other Minor Expenses,Refreshments for volunteers
21-Nov-18,Culture & Environment Services,The Range,5.63,Equipment - Purchase General,Christmas decorations
25-Oct-18,Culture & Environment Services,The Range,15.17,Materials and Supplies - Miscellaneous,Picture Frames
19-Nov-18,Culture & Environment Services,The Range,19.12,Materials and Supplies - Miscellaneous,Decorations
20-Nov-18,Culture & Environment Services,The Range,71.12,Materials and Supplies - Miscellaneous,Christmas Decorations
23-Nov-18,Culture & Environment Services,The Range,1.67,Materials and Supplies - Miscellaneous,bubble wrap for office use
08-Nov-18,Culture & Environment Services,The Retail Factory,99.00,Equipment - Purchase General,Coat hangers
07-Nov-18,Culture & Environment Services,The Works,1.25,Equipment - Purchase General,A4 Lever arch file
22-Nov-18,Culture & Environment Services,The Works,1.67,Equipment - Purchase General,2019 Diary for Ransomes
12-Nov-18,Culture & Environment Services,The Works,1.00,Goods for Resale - Catering/Beverages,Milk for away days
23-Oct-18,Culture & Environment Services,The Works,5.00,Materials and Supplies - Miscellaneous,Back Bar Display
24-Oct-18,Culture & Environment Services,The Works,13.50,Materials and Supplies - Miscellaneous,Back Bar Display
27-Nov-18,Culture & Environment Services,The Works,10.82,Stationery,Diaries
14-Nov-18,Culture & Environment Services,Timpson,10.83,Equipment - Purchase General,Keys 
15-Nov-18,Culture & Environment Services,Timpson,10.42,Equipment - Purchase General,Keys for key rings
23-Nov-18,Culture & Environment Services,Timpson,22.50,Equipment - Purchase General,Keys
09-Nov-18,Culture & Environment Services,Timpson,5.42,Materials and Supplies - Miscellaneous,Keys cut - Chantry Hub
26-Nov-18,Culture & Environment Services,Timpson,21.66,Materials and Supplies - Miscellaneous,Gold Plaque - ST AUGUS REC - CCP Hub
23-Nov-18,Culture & Environment Services,Toolstation Ltd,25.40,Equipment - Purchase General,Fly Lead Socket Convertor
16-Nov-18,Culture & Environment Services,Trainline,13.95,Use Of Public Transport,Conference Fi_Bury
27-Nov-18,Culture & Environment Services,Trainline,66.50,Use Of Public Transport,Travelling to a course_MH
12-Nov-18,Culture & Environment Services,Turner Tool Hire,711.93,Equipment Hire,MEWP HIRE
12-Nov-18,Culture & Environment Services,Turner Tool Hire,"1,004.44",Equipment Hire,MEWP HIRE
21-Nov-18,Culture & Environment Services,Tv Licensing,125.42,Licences,TV Licence.
12-Nov-18,Culture & Environment Services,Waitrose Ltd,16.49,Goods for Resale - Catering/Beverages,coke / diet coke
12-Nov-18,Culture & Environment Services,Waitrose Ltd,0.92,Goods for Resale - Catering/Beverages,Milk for 50+
19-Nov-18,Culture & Environment Services,Waitrose Ltd,6.00,Goods for Resale - Catering/Beverages,Lemons
19-Nov-18,Culture & Environment Services,Waitrose Ltd,2.20,Goods for Resale - Catering/Beverages,Milk for awaydays
23-Nov-18,Culture & Environment Services,Waitrose Ltd,2.19,Goods for Resale - Catering/Beverages,Milk for light switch on
29-Nov-18,Culture & Environment Services,Waitrose Ltd,1.83,Goods for Resale - Catering/Beverages,milk
06-Nov-18,Culture & Environment Services,Waitrose Ltd,1.13,Subsistence Expenses,Milk for Shop mo
13-Nov-18,Culture & Environment Services,Waitrose Ltd,0.92,Subsistence Expenses,Milk for Shop mo
26-Nov-18,Culture & Environment Services,Waitrose Ltd,0.42,Subsistence Expenses,milk for shopmobility
27-Nov-18,Culture & Environment Services,Waitrose Ltd,0.92,Subsistence Expenses,Milk for Shop mo
22-Nov-18,Culture & Environment Services,Wh Smith,4.58,Equipment - Purchase General,emergency cash recording book due to till failure
06-Nov-18,Culture & Environment Services,Wh Smith,6.66,Premises Costs - Miscellaneous,Permanent markers for numbering
07-Nov-18,Culture & Environment Services,Wickes Ipswich,26.66,Miscellaneous Stock  - Purchases,Cement - ST AUGUSTINE'S REC - Landscape Team
06-Nov-18,Culture & Environment Services,Wilko Retail Limit,6.88,Equipment - Purchase General,Purchase of craft materials for Corn Ex Christmas Parties
09-Nov-18,Culture & Environment Services,Wilko Retail Limit,4.17,Equipment - Purchase General,Gorilla glue for box office sign
19-Nov-18,Culture & Environment Services,Wilko Retail Limit,11.25,Equipment - Purchase General,Wrecking bars for back stage
26-Nov-18,Culture & Environment Services,Wilko Retail Limit,21.67,Equipment - Purchase General,extension leads for Christmas lights display
26-Nov-18,Culture & Environment Services,Wilko Retail Limit,5.00,Equipment - Purchase General,Wire for hanging Christmas decorations
30-Nov-18,Culture & Environment Services,Wilko Retail Limit,30.04,Equipment - Purchase General,4 x shower heads for Corn Ex - (old failed test)
06-Nov-18,Culture & Environment Services,Wilko.Com,48.75,Equipment - Repairs,Vehicle consumables
29-Nov-18,Culture & Environment Services,Www.Bksplastics.Co.Uk,55.58,Equipment - Purchase General,Plastic Cutlery
21-Nov-18,Culture & Environment Services,Www.British-Gymnastics,229.92,Goods for Resale - Equipment,Gymnastics Certificates & Badges
14-Nov-18,Culture & Environment Services,Www.Bunzlcleaningsuppl,23.97,Cleaning Supplies,Mop heads for Ransomes
13-Nov-18,Culture & Environment Services,Www.Cleanroomsuppliesltd,419.30,Cleaning Supplies,Cleaning Supplies Crown Pools
26-Nov-18,Culture & Environment Services,Www.Danceeast.Co.Uk,10.00,Miscellaneous Functions & Events,assessment of visitor experience at danceeast
20-Nov-18,Culture & Environment Services,Www.Indigoshop.Co.Uk,98.35,Equipment - Purchase General,Low tack tape for Grand Hall floor
27-Nov-18,Culture & Environment Services,Www.Indigoshop.Co.Uk,134.10,Equipment - Purchase General,Low tack tape for Grand Hall
07-Nov-18,Culture & Environment Services,Www.Ipswichpa.Co.Uk,29.98,Equipment - Purchase General,2 speaker cables.
30-Nov-18,Culture & Environment Services,Www.Ironmongerydirect.,31.55,Equipment - Purchase General,plant office door handles and lock
15-Oct-18,Culture & Environment Services,Www.Lifesaversdirect,198.33,Training/Courses Running Costs,NPLQ Renewal Pack
21-Nov-18,Culture & Environment Services,Www.Lifesaversdirect,264.96,Training/Courses Running Costs,First Aid At Work Candidate Packs
12-Nov-18,Culture & Environment Services,Www.McCormicktools.Com,30.84,Parks Vehicle Costs,Beacons
12-Nov-18,Culture & Environment Services,Www.McCormicktools.Com,30.84,Parks Vehicle Costs,Beacons
12-Nov-18,Culture & Environment Services,Www.McCormicktools.Com,30.84,Parks Vehicle Costs,Beacons
12-Nov-18,Culture & Environment Services,Www.Ningbo.Co.Uk,480.66,Equipment - Purchase General,40 folding chairs.
02-Nov-18,Culture & Environment Services,Www.Nisbets.Com,293.96,Equipment - Purchase General,Replacement shelving units
09-Nov-18,Culture & Environment Services,Www.Nisbets.Com,85.60,Equipment - Purchase General,Pourers
13-Nov-18,Culture & Environment Services,Www.Nisbets.Com,85.60,Equipment - Purchase General,Optics
07-Nov-18,Culture & Environment Services,Www.Nisbets.Com,64.77,Materials and Supplies - Miscellaneous,Replacement Bins
16-Nov-18,Culture & Environment Services,Www.Partypacks.Co.Uk,87.50,Materials and Supplies - Miscellaneous,Disposable Table Clothes
21-Nov-18,Culture & Environment Services,Www.Physioroom.Com,157.49,Equipment - Purchase General,hand weights various sizes for classes
22-Nov-18,Culture & Environment Services,Www.Physioroom.Com,-2.92,Equipment - Purchase General,refund for delivery cost for exercise mats
13-Nov-18,Culture & Environment Services,Www.Physiotherapystore,83.25,Equipment - Purchase General,fitness mats x10 for classes
23-Nov-18,Culture & Environment Services,Www.Primrose.Co.Uk,"2,537.42",Materials and Supplies - Miscellaneous,Planters for Millennium Cemetery
21-Nov-18,Culture & Environment Services,Www.Qualsafe.Com,56.90,Training/Courses Running Costs,Equipment for First Aid Courses
14-Nov-18,Culture & Environment Services,Www.Sinclair-Rush.Co.U,37.50,Equipment - Purchase General,Rubber feet for bar barrier - floor protection
30-Nov-18,Culture & Environment Services,Www.Swimmingpoolchemic,126.63,Cleaning Supplies,swimming pool acid
28-Nov-18,Culture & Environment Services,Www.Technogym.Com,106.08,Equipment - Purchase General,repair to treadmills x3 (casings)
26-Nov-18,Culture & Environment Services,Www.Trees.Org.Uk,140.83,Other Fees and Professional Services,Membership renewal
05-Nov-18,Culture & Environment Services,Www.Wolseytheatre.Co.Uk,15.00,Miscellaneous Functions & Events,attend spill performance during festival
15-Nov-18,Culture & Environment Services,Zoggs International Ltd,-59.20,Goods for Resale - Equipment,out of stock
19-Nov-18,Development,Alistair Bromhead Ltd,30.00,Training Expenses,Training aid for smooth transition wheel chair to evac chair
29-Nov-18,Development,Amzn Mktp Uk,12.49,Equipment - Purchase General,"Vernier gauge tool, "
06-Nov-18,Development,Fast Key Services Limi,6.05,Fixtures & Fittings,ECC keys for lockable cabinet
08-Nov-18,Development,Homebase Ltd 038,7.00,Materials and Supplies - Miscellaneous,Small grey baskets x3 for new paper cups storage
05-Nov-18,Development,Hunters-Wholesaler,36.75,Equipment - Purchase General,Faulty buttons needing replacing
22-Nov-18,Development,J P Chick & Partne,95.00,Other Fees and Professional Services,Calculations Check 54 Tasmania Rd
02-Nov-18,Development,Machine Mart Ltd,25.98,Premises Costs - Miscellaneous,padlocks
27-Nov-18,Development,Rics Subs UK Cybs,529.00,Employee Expenses,SU subs
05-Nov-18,Development,Sainsburys S/mkt,5.00,Cleaning Supplies,dw cleaner
12-Nov-18,Development,Sainsburys S/mkt,8.33,Cleaning Supplies,dishwasher tablets
29-Oct-18,Development,Sainsburys S/mkt,13.58,Subsistence Expenses,tea coffee etc
02-Nov-18,Development,Screwfix Direct,84.97,Equipment - Purchase General,Full PPE for ZT & RA
19-Nov-18,Development,Suffolk Coastal Distri,96.00,Other Fees and Professional Services,Inspection Fees Partnership application 8 Ickworth
13-Nov-18,Development,Tnt Uk Ltd,103.03,Postage Costs,special delivery IG letters
05-Nov-18,Development,Trainline,77.40,Use Of Public Transport,"3 x day returns to Norwich, training course"
05-Nov-18,Development,Trainline,77.40,Use Of Public Transport,"3 x day returns to Norwich, training course"
08-Nov-18,Development,Trainline,43.30,Use Of Public Transport,"Off peak return to Stratford, contract meeting"
09-Nov-18,Development,Www Prindo Co Uk,32.38,Stationery,Cyan printhead cartridge for plotter
26-Nov-18,Development,Www.Ciob.Org.Uk,287.00,Employee Expenses,CIOB 2019 subs
26-Nov-18,Development,Www.Ciob.Org.Uk,287.00,Employee Expenses,"CIOB 2019 subs,"
26-Nov-18,Development,Www.Ciob.Org.Uk,247.00,Employee Expenses,CIOB subs 2019
26-Nov-18,Development,Www.Ciob.Org.Uk,287.00,Employee Expenses,CIOB subs 2019
26-Nov-18,Development,Www.Ciob.Org.Uk,287.00,Employee Expenses,CIOB subs 2019
28-Nov-18,Development,Www.Ciob.Org.Uk,287.00,Employee Expenses,CIOB subs 2019 
30-Oct-18,Development,Www.Pb.Com,141.90,Postage Costs,franking ink
19-Nov-18,Development,Www.Posturite.Co.Uk,133.95,Equipment - Purchase General,Ordered on behalf of Parking Services
29-Oct-18,Development,Www.Sackers .Co.Uk,285.60,Removal/Emptying of Waste,BIns
23-Nov-18,Development,Www.Uk.Edensprings.Com,16.99,Materials and Supplies - Miscellaneous,paper cups 
09-Nov-18,Finance & Revenues,Amazon.Co.Uk,10.00,Computer Equipment - Purchase,Laptop locks for the service desk team
12-Nov-18,Finance & Revenues,Amazon.Co.Uk,10.28,Computer Equipment - Purchase,Wrist rest - Helpdesk
05-Nov-18,Finance & Revenues,Amz*meredither,-14.24,Telecommunication Costs - Business Phones,Headset accessories
01-Nov-18,Finance & Revenues,Amzn Mktp Uk,23.38,Computer Equipment - Purchase,2 x USB Hubs. ICT Stock
16-Nov-18,Finance & Revenues,Amzn Mktp Uk,11.98,Computer Equipment - Purchase,USB- to USBC hub \ Case
16-Nov-18,Finance & Revenues,Amzn Mktp Uk,15.99,Equipment - Purchase General,USB- to USBC hub \ Case
06-Nov-18,Finance & Revenues,Amzn Mktp Uk,16.48,Telecommunication Costs - Business Phones,Headset accessories
08-Nov-18,Finance & Revenues,Amzn Mktp Uk,11.07,Telecommunication Costs - Business Phones,Headset accessories
20-Nov-18,Finance & Revenues,Amzn Mktp Uk,3.69,Telecommunication Costs - Mobiles,Protective cases for Smartphones
20-Nov-18,Finance & Revenues,Amzn Mktp Uk,3.69,Telecommunication Costs - Mobiles,Protective cases for Smartphones
20-Nov-18,Finance & Revenues,Amzn Mktp Uk,3.69,Telecommunication Costs - Mobiles,Protective cases for Smartphones
28-Nov-18,Finance & Revenues,Amzn Mktp Uk,4.98,Telecommunication Costs - Mobiles,Headset cable
29-Nov-18,Finance & Revenues,Amzn Mktp Uk,16.47,Telecommunication Costs - Mobiles,Waterproof cases for Smartphones
26-Nov-18,Finance & Revenues,Cbt Nuggets,67.60,Training Expenses,Training License
05-Nov-18,Finance & Revenues,Comms Express Ltd,17.55,Computer Equipment - Purchase,Network cables
08-Nov-18,Finance & Revenues,Dart-Charge,5.00,Training Expenses,expenditure for crossing the QE2 bridge to attend a seminar
06-Nov-18,Finance & Revenues,Extera Ltd,293.75,Computer Equipment - Purchase,Conferencing equipment
02-Nov-18,Finance & Revenues,Hmcts-Suffolk024,490.00,Legal Services & Fees,Council Tax Committal summons
16-Nov-18,Finance & Revenues,Hmcts-Suffolk024,735.00,Legal Services & Fees,Council Tax committal summons
21-Nov-18,Finance & Revenues,Kenable,79.75,Project Costs,USB Docks and USB Blue Cables
30-Nov-18,Finance & Revenues,Onedirect,386.91,Computer Equipment - Purchase,Skype headsets and conference speakers
05-Nov-18,Finance & Revenues,"Probrand Ltd.,",157.94,Computer Software - Purchase,4 x PDF Create software
15-Nov-18,Finance & Revenues,Probrandlimited,80.17,Computer Operating Leases,PDF Converter 3.0 x 2 Licences
15-Nov-18,Finance & Revenues,Probrandlimited,80.17,Computer Operating Leases,PDF Converter 3.0 x 2 Licences
26-Nov-18,Finance & Revenues,Screwfix Direct,249.99,Computer Equipment - Purchase,CCTV Cameras as per Audit requirement for ICT Server Room
13-Nov-18,Finance & Revenues,Service Fees - Fraedom Pty Ltd,383.15,Computer Software - Maintenance,Fraedom Card Usage Fees - 01/10/2018-31/10/2018
14-Nov-18,Finance & Revenues,Trainline,69.75,Use Of Public Transport,Train Tickets 
23-Nov-18,Finance & Revenues,Trainline,38.14,Use Of Public Transport,Return Train Ticket Ipswich to London on 28/11/18
28-Nov-18,Finance & Revenues,Trainline,218.40,Use Of Public Transport,Train Tickets 
30-Nov-18,Finance & Revenues,Www.Cablesuk.Co.Uk,31.70,Computer Equipment - Purchase,Misc Cables
16-Nov-18,Finance & Revenues,Www.Pro2col.Com,85.60,Computer Equipment - Purchase,SRP Licenses for FTP software
14-Nov-18,Housing & Community Services,Amazon Prime,7.99,Equipment - Purchase General,Amazon Prime
01-Nov-18,Housing & Community Services,Amazon.Co.Uk,19.83,Clothing & Uniform - Purchase,fire marshal
05-Nov-18,Housing & Community Services,Amazon.Co.Uk,17.13,Equipment - Purchase General,CD rom for transcribing PACE interviews
05-Nov-18,Housing & Community Services,Amazon.Co.Uk Amazon.Co.Uk,-20.83,Stationery,wirless keyboard
05-Nov-18,Housing & Community Services,Amzn Mktp Uk,57.91,Equipment - Purchase General,Tamper proof seals for use on CCTV cameras in licensed vehic
16-Nov-18,Housing & Community Services,Amzn Mktp Uk,6.42,Equipment - Purchase General,CD Pack
16-Nov-18,Housing & Community Services,Amzn Mktp Uk,20.99,Equipment - Purchase General,External CD Drive
16-Nov-18,Housing & Community Services,Amzn Mktp Uk,47.94,Equipment - Purchase General,Wireless Mice
20-Nov-18,Housing & Community Services,Amzn Mktp Uk,8.59,Equipment - Purchase General,Phone case
21-Nov-18,Housing & Community Services,Amzn Mktp Uk,29.96,Equipment - Purchase General,Phone cases
21-Nov-18,Housing & Community Services,Amzn Mktp Uk,10.65,Equipment - Purchase General,Screen Proptectors
21-Nov-18,Housing & Community Services,Amzn Mktp Uk,5.32,Equipment - Purchase General,Screen Protectors
22-Nov-18,Housing & Community Services,Amzn Mktp Uk,8.59,Equipment - Purchase General,Phone Case
22-Nov-18,Housing & Community Services,Amzn Mktp Uk,28.09,Equipment - Purchase General,Snap Frames 
27-Nov-18,Housing & Community Services,Amzn Mktp Uk,4.87,Equipment - Purchase General,Glazing Chisel 
05-Nov-18,Housing & Community Services,Amzn Mktp Uk,21.95,Materials and Supplies - Miscellaneous,Lockable mailbox
12-Nov-18,Housing & Community Services,Amzn Mktp Uk,17.80,Materials and Supplies - Miscellaneous,Magnetic Tape 
19-Nov-18,Housing & Community Services,Amzn Mktp Uk,194.50,Materials and Supplies - Miscellaneous,Purchase of 50 fire blankets as per Hot Works permit.
01-Nov-18,Housing & Community Services,Amzn Mktp Uk,10.93,Stationery,Cake tins for CSC
02-Nov-18,Housing & Community Services,B & M Retail,4.98,Stationery,Shelf protectors for Ccc sTAFF ROOM
06-Nov-18,Housing & Community Services,Banner Group Ltd,57.78,Other Minor Expenses,Stationary
06-Nov-18,Housing & Community Services,Banner Group Ltd,309.74,Other Minor Expenses,Stationary/ footstool
05-Nov-18,Housing & Community Services,Banner Group Ltd,110.03,Stationery,Stationery
06-Nov-18,Housing & Community Services,Banner Group Ltd,3.94,Stationery,Stationery
20-Nov-18,Housing & Community Services,Banner Group Ltd,16.16,Stationery,Stationery
20-Nov-18,Housing & Community Services,Banner Group Ltd,17.83,Stationery,Stationery
06-Nov-18,Housing & Community Services,Bunzl,191.96,Cleaning Supplies,cleaning supplies
09-Nov-18,Housing & Community Services,Cemex UK Operations Lt,71.60,Materials and Supplies - Miscellaneous,Concrete for 3 Defoe Road 3146877
12-Nov-18,Housing & Community Services,Cemex UK Operations Lt,60.88,Materials and Supplies - Miscellaneous,Concrete for 3 Defoe Road 3146877
13-Nov-18,Housing & Community Services,Cemex UK Operations Lt,60.88,Materials and Supplies - Miscellaneous,Concrete for 3 Defoe Road 3146877
13-Nov-18,Housing & Community Services,Cemex UK Operations Lt,60.88,Materials and Supplies - Miscellaneous,Concrete for 3 Defoe Road 3146877
28-Nov-18,Housing & Community Services,Corgi,300.00,Other Fees and Professional Services,AGSM Membership 
22-Nov-18,Housing & Community Services,Cpw Locksmiths And Securi,24.25,Equipment - Purchase General,3 x Replacement keys cut and tags for Parking Services keys.
01-Nov-18,Housing & Community Services,Cpw Locksmiths And Securi,80.00,HRA Special Repairs & Maintenance,lock repair
01-Nov-18,Housing & Community Services,Cpw Locksmiths And Securi,16.67,HRA Special Repairs & Maintenance,padlock and keys CT
07-Nov-18,Housing & Community Services,Cpw Locksmiths And Securi,100.83,HRA Special Repairs & Maintenance,sheltered scheme service/repair lock
14-Nov-18,Housing & Community Services,Cpw Locksmiths And Securi,96.00,HRA Special Repairs & Maintenance,Lock repair
20-Nov-18,Housing & Community Services,Cpw Locksmiths And Securi,240.00,HRA Special Repairs & Maintenance,Additional keys
29-Nov-18,Housing & Community Services,Currys,215.83,Equipment - Purchase General,New TV & Bracket for information screen in stores 
26-Nov-18,Housing & Community Services,Dunelm Ltd,20.00,Materials and Supplies - Miscellaneous,Storage for PPE/H&S Information.
01-Nov-18,Housing & Community Services,Felgains,95.00,Equipment - Purchase General,Service of Razier Chair-
27-Nov-18,Housing & Community Services,Floor Mats,19.95,Materials and Supplies - Miscellaneous,03309704 Floormat
23-Nov-18,Housing & Community Services,Halfords 0883,56.67,Equipment - Purchase General,2 x torchers for HEARS Vans + batteries for spare torch
14-Nov-18,Housing & Community Services,Hmcts-Suffolk024,20.00,Legal Services & Fees,Gas warrant
26-Nov-18,Housing & Community Services,Hmcts-Suffolk024,20.00,Legal Services & Fees,Gas warrant
30-Nov-18,Housing & Community Services,Hmcts-Suffolk024,452.00,Legal Services & Fees,Closure order paid to courts 
28-Nov-18,Housing & Community Services,Ibis Birmingham Bordes,196.65,Training Expenses,Hotel costs for course
12-Nov-18,Housing & Community Services,J2 Efax Plus Service,11.00,Other Minor Expenses,Monthly fee for use of secure fax system
06-Nov-18,Housing & Community Services,Lace Market Hotel,75.83,Training Expenses,Hotel room for Nott for Ngate conference
06-Nov-18,Housing & Community Services,Lace Market Hotel,75.83,Training Expenses,Room in Nott hotel for Ngate conference
12-Nov-18,Housing & Community Services,Land Registry,3.00,Legal Services & Fees,|Title deeds-CCTV project
12-Nov-18,Housing & Community Services,Land Registry,3.00,Legal Services & Fees,Title deeds-CCTV project
12-Nov-18,Housing & Community Services,Land Registry,3.00,Legal Services & Fees,Title deeds-CCTV project
12-Nov-18,Housing & Community Services,Land Registry,3.00,Legal Services & Fees,Title deeds-CCTV Project
12-Nov-18,Housing & Community Services,Land Registry,3.00,Legal Services & Fees,Title deeds-CCTV project
12-Nov-18,Housing & Community Services,Land Registry,3.00,Legal Services & Fees,Title deeds-CCTV project
12-Nov-18,Housing & Community Services,Land Registry,3.00,Legal Services & Fees,Title deeds-CCTV project
12-Nov-18,Housing & Community Services,Land Registry,3.00,Legal Services & Fees,Title deeds-CCTV project
12-Nov-18,Housing & Community Services,Land Registry,3.00,Legal Services & Fees,Title deeds-CCTV project
12-Nov-18,Housing & Community Services,Land Registry,3.00,Legal Services & Fees,Title deeds-CCTV project
12-Nov-18,Housing & Community Services,Land Registry,3.00,Legal Services & Fees,Title deeds-CCTV Project
19-Nov-18,Housing & Community Services,Land Registry,3.00,Legal Services & Fees,CCTV Project-Title deeds
19-Nov-18,Housing & Community Services,Land Registry,3.00,Legal Services & Fees,CCTV Project-Title deeds
19-Nov-18,Housing & Community Services,Land Registry,3.00,Legal Services & Fees,CCTV Project-Title deeds
09-Nov-18,Housing & Community Services,Lumberjacks,22.50,Equipment - Purchase General,New Railway Sleeper for Rubble Bay
22-Nov-18,Housing & Community Services,Machine Mart Ltd,72.49,Equipment - Purchase General,1 x Broadcast spreader for de-icing work.
16-Nov-18,Housing & Community Services,Mogal E Azam Restauran,32.85,Training Expenses,Meal out for 2 x officers when in Nottingham for conference
01-Nov-18,Housing & Community Services,Paypal,16.66,Other Minor Expenses,extending pole cobweb duster for Holywells Court
15-Nov-18,Housing & Community Services,Pennington Surveyo,"1,712.31",Services for Clients,Agents fee IHMS 12007
08-Nov-18,Housing & Community Services,Possessionclaim.Go,325.00,Legal Services & Fees,Possession claim on line
08-Nov-18,Housing & Community Services,Possessionclaim.Go,325.00,Legal Services & Fees,Possession claim on line
08-Nov-18,Housing & Community Services,Possessionclaim.Go,325.00,Legal Services & Fees,Possession claim on line
08-Nov-18,Housing & Community Services,Possessionclaim.Go,325.00,Legal Services & Fees,Possession claim on line
09-Nov-18,Housing & Community Services,Possessionclaim.Go,325.00,Legal Services & Fees,Possession claim on line
09-Nov-18,Housing & Community Services,Possessionclaim.Go,325.00,Legal Services & Fees,Possession claim on line
09-Nov-18,Housing & Community Services,Possessionclaim.Go,325.00,Legal Services & Fees,Possession claim on line
13-Nov-18,Housing & Community Services,Possessionclaim.Go,325.00,Legal Services & Fees,Possession claim on line
13-Nov-18,Housing & Community Services,Possessionclaim.Go,325.00,Legal Services & Fees,Possession claim on line
13-Nov-18,Housing & Community Services,Possessionclaim.Go,325.00,Legal Services & Fees,Possession claim on line
13-Nov-18,Housing & Community Services,Possessionclaim.Go,325.00,Legal Services & Fees,Possession claim on line
13-Nov-18,Housing & Community Services,Possessionclaim.Go,325.00,Legal Services & Fees,Possession claim on line
13-Nov-18,Housing & Community Services,Possessionclaim.Go,325.00,Legal Services & Fees,Possession claim on line
14-Nov-18,Housing & Community Services,Possessionclaim.Go,121.00,Legal Services & Fees,warrant of possession
22-Nov-18,Housing & Community Services,Possessionclaim.Go,325.00,Legal Services & Fees,Possession claim on line
22-Nov-18,Housing & Community Services,Possessionclaim.Go,325.00,Legal Services & Fees,Possession claim on line
22-Nov-18,Housing & Community Services,Possessionclaim.Go,325.00,Legal Services & Fees,Possession claim on line
22-Nov-18,Housing & Community Services,Possessionclaim.Go,121.00,Legal Services & Fees,Warrant of possession
28-Nov-18,Housing & Community Services,Possessionclaim.Go,325.00,Legal Services & Fees,Possession claim on line
28-Nov-18,Housing & Community Services,Possessionclaim.Go,325.00,Legal Services & Fees,Possession claim on line
28-Nov-18,Housing & Community Services,Possessionclaim.Go,325.00,Legal Services & Fees,Possession claim on line
28-Nov-18,Housing & Community Services,Possessionclaim.Go,325.00,Legal Services & Fees,Possession claim on line
29-Nov-18,Housing & Community Services,Possessionclaim.Go,325.00,Legal Services & Fees,Possession claim on line
29-Nov-18,Housing & Community Services,Possessionclaim.Go,325.00,Legal Services & Fees,Possession claim on line
29-Nov-18,Housing & Community Services,Possessionclaim.Go,325.00,Legal Services & Fees,Possession claim on line
23-Nov-18,Housing & Community Services,Post Office Counter,20.30,Postage Costs,Special delivery postage for contract particulars (Engie)
01-Nov-18,Housing & Community Services,Post Office Counter,1.76,Stationery,post office recorded delivery Walton Hse Tv License renewal
26-Nov-18,Housing & Community Services,Rics,192.00,Training Expenses,CPD Event 
20-Nov-18,Housing & Community Services,Royal Society Of Chemi,136.00,Employee Expenses,membership for 2019
01-Nov-18,Housing & Community Services,Safe Solutions Safe4 Limi,18.98,Equipment - Purchase General,Dog disinfectant spray for vans
14-Nov-18,Housing & Community Services,Sainsburys S/mkt,20.83,Other Minor Expenses,Holywells Court replacement kettle kitchen
05-Nov-18,Housing & Community Services,Screwfix Direct,4.13,Equipment - Purchase General,Fire extinguisher signs & Brackets 
15-Nov-18,Housing & Community Services,Screwfix Direct,7.49,Equipment - Purchase General,WAH231 S Bole replacement ladder holding strap
09-Nov-18,Housing & Community Services,Seton,328.22,Materials and Supplies - Miscellaneous,Health and Signs for Gipping House.
08-Nov-18,Housing & Community Services,Spicerhaart Residential,330.00,Services for Clients,Agents fee
30-Nov-18,Housing & Community Services,Stormguard,9.22,Materials and Supplies - Miscellaneous,NF Bubble Seal (Stormguard) 3301302
02-Nov-18,Housing & Community Services,Suk Retail Ltd,21.65,Equipment - Purchase General,2x Tape Dispensers 
13-Nov-18,Housing & Community Services,Suk Retail Ltd,27.69,Equipment - Purchase General,1 x bubble wrap to return radios. Office sundries Crown CP.
08-Nov-18,Housing & Community Services,Trainline,48.21,Employee Expenses,Train travel ordered to Nottingham for conference
07-Nov-18,Housing & Community Services,Trainline,181.94,Training Expenses,return train to Nottingham for - Ngate conf
08-Nov-18,Housing & Community Services,Trainline,48.21,Training Expenses,Train travel to Nottingham for conference
20-Nov-18,Housing & Community Services,Trainline,104.65,Training Expenses,Train tickets for tenancy services
20-Nov-18,Housing & Community Services,Trainline,104.65,Training Expenses,Train tickets for tenancy services
15-Nov-18,Housing & Community Services,Trainline,97.02,Use Of Public Transport,Tenancy Services train tickets to London
28-Nov-18,Housing & Community Services,Trainline,137.00,Use Of Public Transport,Rail tickets 3rd Dec 2018 Ipswich - Birmingham
30-Nov-18,Housing & Community Services,Travelodge Gb0000,146.67,Other Minor Expenses,Accommodation for Client
02-Nov-18,Housing & Community Services,Waitrose Ltd,2.95,Materials and Supplies - Miscellaneous,Milk
09-Nov-18,Housing & Community Services,Waitrose Ltd,2.50,Materials and Supplies - Miscellaneous,Milk
07-Nov-18,Housing & Community Services,Waitrose Ltd,2.00,Stationery,MILK
19-Nov-18,Housing & Community Services,Waitrose Ltd,1.13,Stationery,Milk for CCC
26-Nov-18,Housing & Community Services,Waitrose Ltd,0.92,Stationery,Milk for the CCC
02-Nov-18,Housing & Community Services,Wickes Building,13.95,Materials and Supplies - Miscellaneous,3276073 4mm Rebar x 6
02-Nov-18,Housing & Community Services,Wickes Building,-13.95,Materials and Supplies - Miscellaneous,3276073 4mm Rebar x 6 refund
02-Nov-18,Housing & Community Services,Wickes Stowmarket,18.45,Materials and Supplies - Miscellaneous,3276073 5mm Rebar x 6
09-Nov-18,Housing & Community Services,Wilko Retail Limit,1.00,Stationery,Screws for TV bracket
26-Nov-18,Housing & Community Services,Wm Morrisons Store,35.00,Equipment - Purchase General,Replacement kettle for Gipping House operational depot
30-Nov-18,Housing & Community Services,Www.Barriersdirect.Co.,609.70,Premises Costs - Miscellaneous,T Spall new bike bays BI7272 rubber bumpers
15-Nov-18,Housing & Community Services,Www.Ciob.Org.Uk,247.00,Employee Expenses,CIOB subscription 
15-Nov-18,Housing & Community Services,Www.Clandb.Co.Uk,222.00,Other Fees and Professional Services,Catering arrangements for Health and Safety event 12.09.18.
14-Nov-18,Housing & Community Services,Www.Ironmongerydirect.,11.90,Materials and Supplies - Miscellaneous,door Clips x 10 3294442
28-Nov-18,Housing & Community Services,Www.Johnsonvalves.Co.U,55.07,Materials and Supplies - Miscellaneous,S Melbourne Water Valve 3311008
16-Nov-18,Housing & Community Services,Www.Lockerkeys.Biz,46.44,Materials and Supplies - Miscellaneous,Desk locks & keys
29-Nov-18,Housing & Community Services,Www.Lockermaster.C,17.28,Materials and Supplies - Miscellaneous,Lockmaster Keep set PLK 118/119 PLS72 3301302 
09-Nov-18,Housing & Community Services,Www.Scruffs.Com,41.58,Clothing & Uniform - Purchase,Safety Shoes G Tibbenham
07-Nov-18,Housing & Community Services,Www.Toolstation.Com,8.75,Clothing & Uniform - Purchase,3x Kneeling Pads. 2x JRT 1x 
23-Nov-18,People & Governance,Aa Media,"1,015.00",Advertising/Publicity,Crown Car Park AA signs December
29-Nov-18,People & Governance,Acca,246.00,Other Fees and Professional Services,ACCA Subsciption
28-Nov-18,People & Governance,Amazon.Co.Uk,17.26,Miscellaneous Stock  - Purchases,Spray Mount for the Print Room
23-Nov-18,People & Governance,Amzn Mktp Uk,28.73,Miscellaneous Stock  - Purchases,Paper Seed Flowers for trial of bookmarks etc for Cemeteries
28-Nov-18,People & Governance,Amzn Mktp Uk,23.33,Miscellaneous Stock  - Purchases,Foam Board for Print Room
09-Nov-18,People & Governance,Boots 1833,1.83,Miscellaneous Functions & Events,miltons steriliser
13-Nov-18,People & Governance,Cipd Integra,135.00,Other Fees and Professional Services,Course fees for Josh Rooke - CIPD course
16-Nov-18,People & Governance,Crucial.Com,109.98,Computer Consumables and other Minor IT costs,Memory upgrade for one of the iMacs
13-Nov-18,People & Governance,Eoe Co-Op,0.83,Project Costs,Racecourse Reference Group
13-Nov-18,People & Governance,Eoe Co-Op,0.59,Project Costs,Racecourse Reference Group
12-Nov-18,People & Governance,Facebk *37gkuhe8j2,477.62,Advertising/Publicity,Advertising
12-Nov-18,People & Governance,Facebk *37gkuhe8j2,5.71,Advertising/Publicity,Advertising
16-Nov-18,People & Governance,Facebk *5e8x9js7j2,17.02,Advertising/Publicity,Advertising
16-Nov-18,People & Governance,Facebk *5e8x9js7j2,12.50,Advertising/Publicity,Advertising
16-Nov-18,People & Governance,Facebk *5e8x9js7j2,453.81,Advertising/Publicity,Advertising
21-Nov-18,People & Governance,Facebk *b5aarjn8j2,24.64,Advertising/Publicity,Advertising
21-Nov-18,People & Governance,Facebk *b5aarjn8j2,18.93,Advertising/Publicity,Advertising
21-Nov-18,People & Governance,Facebk *b5aarjn8j2,439.76,Advertising/Publicity,Advertising
28-Nov-18,People & Governance,Facebk *jajztjn8j2,33.33,Advertising/Publicity,Advertising
28-Nov-18,People & Governance,Facebk *jajztjn8j2,86.10,Advertising/Publicity,Advertising
28-Nov-18,People & Governance,Facebk *jajztjn8j2,363.90,Advertising/Publicity,Advertising
02-Nov-18,People & Governance,Facebk *nh6arhe8j2,21.00,Advertising/Publicity,Advertising
02-Nov-18,People & Governance,Facebk *nh6arhe8j2,462.33,Advertising/Publicity,Advertising
06-Nov-18,People & Governance,Facebk *sdr3hjn8j2,16.49,Advertising/Publicity,Advertising
06-Nov-18,People & Governance,Facebk *sdr3hjn8j2,11.01,Advertising/Publicity,Advertising
06-Nov-18,People & Governance,Facebk *sdr3hjn8j2,455.83,Advertising/Publicity,Advertising
07-Nov-18,People & Governance,Facebk *uuyu4js7j2,49.01,Advertising/Publicity,Advertising
07-Nov-18,People & Governance,Facebk *uuyu4js7j2,4.12,Advertising/Publicity,Advertising
07-Nov-18,People & Governance,Greater Anglia Trains,145.50,Use Of Public Transport,Train fare to IDEA training
14-Nov-18,People & Governance,Greater Anglia Trains,62.40,Use Of Public Transport,Train fare to software user group
08-Nov-18,People & Governance,Helloprint,113.95,Stationery,Promotional pens for fraud awareness
13-Nov-18,People & Governance,Ipswich Tourist In,40.00,Project Costs,Guided Walk for Arras Guests 8 Nov 2018
02-Nov-18,People & Governance,Isaca,181.55,Other Fees and Professional Services,Professional subscription to ISACA
30-Nov-18,People & Governance,Maharani,390.00,Mayoral Related Expenditure,Mayor's Charity Curry event
13-Nov-18,People & Governance,Mailchimp,424.88,Subscriptions - Service Related,MailChimp
27-Nov-18,People & Governance,Mailchimp,196.91,Subscriptions - Service Related,Mailchimp
08-Nov-18,People & Governance,Makro Self Service Ipswic,145.13,Miscellaneous Functions & Events,"prosecco, paper table cloths, paper cups.. College /rem sun."
20-Nov-18,People & Governance,Marks&spencer Plc,17.16,Miscellaneous Functions & Events,food for reception & light switch on
23-Nov-18,People & Governance,Marks&spencer Plc,65.92,Miscellaneous Functions & Events,"Light switch on, cake Sandwiches"
26-Nov-18,People & Governance,Marks&spencer Plc,31.80,Miscellaneous Functions & Events,cake sandwiches
08-Nov-18,People & Governance,Mermaid Inn,741.40,Project Costs,Accommodation for 6 Arras Guests 7-8 Nov 2018
08-Nov-18,People & Governance,Mermaid Inn,72.50,Project Costs,Evening meal for Arras Guests 7 Nov 2018
08-Nov-18,People & Governance,Mermaid Inn,20.90,Project Costs,Food for Arras Guests 7 Nov 2018
22-Nov-18,People & Governance,Premier Inn44015060,99.17,Training Expenses,ADSO Conference accommodation
09-Nov-18,People & Governance,Sainsburys S/mkt,25.75,Miscellaneous Functions & Events,orang juice biscuits coffee rem Sunday
12-Nov-18,People & Governance,Sainsburys S/mkt,12.40,Miscellaneous Functions & Events,bottled water Rem Sunday
12-Nov-18,People & Governance,Sainsburys S/mkt,8.75,Miscellaneous Functions & Events,Corinthian Drinks Reception (soft) /Rem Sunday biscuits
13-Nov-18,People & Governance,Sainsburys S/mkt,0.63,Miscellaneous Functions & Events,school council from St Joseph's on their vist to the parlour
26-Nov-18,People & Governance,Sainsburys S/mkt,5.17,Miscellaneous Functions & Events,washing powder/washing up liquid
22-Nov-18,People & Governance,Shell Ranelagh 390,38.84,General Transport Running Expenses,fuel
08-Nov-18,People & Governance,Sp * My Cupcake Heaven,23.77,Equipment - Purchase General,toppers for fraud awareness week promotion
14-Nov-18,People & Governance,Spectrum,86.56,Computer Consumables and other Minor IT costs,"samsung toner, canon pg545xl/546xl councillors."
19-Nov-18,People & Governance,Spectrum,76.06,Computer Consumables and other Minor IT costs,Canon PG540XL/CL541 x2- Sheltered Housing
23-Nov-18,People & Governance,Spectrum,208.10,Computer Consumables and other Minor IT costs,Sheltered Housing- 6x PG540XL 2x CLi526CMY+
25-Oct-18,People & Governance,Spectrum Computers Ltd,41.92,Computer Consumables and other Minor IT costs,Epson toners to be re-charged to Stage Event Security
31-Oct-18,People & Governance,Spectrum Computers Ltd,115.12,Computer Consumables and other Minor IT costs,"PG510/CL511 X4 SHELTERED, PG540XL/CL541XL X2 Cllr serv."
31-Oct-18,People & Governance,Spectrum Computers Ltd,76.06,Computer Consumables and other Minor IT costs,"PG510/CL511 X4 SHELTERED, PG540XL/CL541XL X2 Cllr serv."
19-Nov-18,People & Governance,"Sprout Social, Inc",807.06,Subscriptions - Service Related,Social Media Management
23-Nov-18,People & Governance,Stk*bigstockphoto.Com,30.00,Computer Consumables and other Minor IT costs,Photo credits
29-Nov-18,People & Governance,Tesco Store 2751,100.00,Project Costs,Retirement gift card 
07-Nov-18,People & Governance,Today Magazines Lt,157.32,Advertising/Publicity,Quarter page ad for Women 100 exhibition
28-Nov-18,People & Governance,Udemy,24.98,Training Expenses,Online Adobe Courses for the Designers
23-Nov-18,People & Governance,Waitrose Ltd,0.92,Miscellaneous Functions & Events,milk for reception
27-Nov-18,People & Governance,Waitrose Ltd,4.34,Miscellaneous Functions & Events,squash/biscuits Ipswich High School
28-Nov-18,People & Governance,Www.Labelplanet.Co.Uk,52.50,Miscellaneous Stock  - Purchases,Required Labels for the print room
05-Nov-18,People & Governance,Www.Neopost.Co.Uk,392.35,Miscellaneous Stock  - Purchases,Envelopes for the Print Room
02-Nov-18,People & Governance,Www.Notcutts.Co.Uk,442.00,Project Costs,Retirement vouchers 
02-Nov-18,People & Governance,Www.Paper.Co.Uk,139.55,Miscellaneous Stock  - Purchases,Required Paper supply for the print room
06-Nov-18,People & Governance,Www.Paper.Co.Uk,139.20,Miscellaneous Stock  - Purchases,Required Paper Supply for Print Room
13-Nov-18,People & Governance,Www.Paper.Co.Uk,158.38,Miscellaneous Stock  - Purchases,Paper for Print Room
08-Nov-18,People & Governance,Www.Proprintsolutions.,110.94,Computer Consumables and other Minor IT costs,Ink For Print Room wide format
23-Nov-18,People & Governance,Www.Proprintsolutions.,112.94,Computer Consumables and other Minor IT costs,Ink for Print room wide format
29-Nov-18,People & Governance,Www.Voucherexpress.Co.,288.75,Project Costs,Retirement gift card 
